fUST/lending_fUST_20250716
["ID","MTS","AMOUNT","RATE_DAILY","PERIOD"]
[372461353,1752652240763,-640.0,0.00023326,2]
[372461354,1752652240773,-215.0738,0.00023333,2]
[372461355,1752652240783,-205.0,0.0002334,2]
[372461356,1752652240792,-151.0,0.000234,7]
[372461357,1752652240803,-2916.0,0.0002345,2]
[372461358,1752652240812,-500.0,0.00023456,2]
[372461359,1752652240822,-584.0,0.00023459,2]
[372461360,1752652240832,-158.02861431,0.00023461,4]
[372461361,1752652240843,-158.02861431,0.00023461,4]
[372461362,1752652240860,-158.02,0.00023461,4]
[372461363,1752652240875,-158.02861431,0.00023461,4]
[372461364,1752652240886,-158.02861431,0.00023461,4]
[372461365,1752652240896,-158.02861431,0.00023461,4]
[372461366,1752652240906,-150.04226239,0.00023461,4]
[372461367,1752652240916,-150.04226239,0.00023461,4]
[372461368,1752652240926,-150.04226239,0.00023461,4]
[372461369,1752652240935,-150.04226239,0.00023461,4]
[372461370,1752652240944,-150.04,0.00023461,4]
[372461371,1752652240953,-159.13573284,0.00023461,4]
[372461372,1752652240962,-159.13573284,0.00023461,4]
[372461373,1752652240972,-159.13573284,0.00023461,4]
[372461374,1752652240981,-159.13573284,0.00023461,4]
[372461375,1752652240990,-159.13573284,0.00023461,4]
[372461376,1752652241000,-640.0,0.00023481,2]
[372461377,1752652241009,-159.13573284,0.00023482,4]
[372461378,1752652241018,-506.02939886,0.00023521,2]
[372461379,1752652241028,-1000.0,0.00023521,2]
[372461380,1752652241038,-212.90624072,0.00023521,2]
[372461381,1752652241047,-1000.0,0.00023521,2]
[372461382,1752652241056,-1000.0,0.00023521,2]
[372461383,1752652241065,-1000.0,0.00023521,2]
[372461384,1752652241074,-690.69724312,0.00023521,2]
[372461385,1752652241083,-500.74551756,0.00023521,2]
[372461386,1752652241092,-619.23527322,0.00023521,2]
[372461387,1752652241102,-1000.0,0.00023521,2]
[372461388,1752652241111,-500.0,0.00023521,2]
[372461389,1752652241121,-158.02861431,0.00023546,4]
[372461390,1752652241131,-500.0,0.00023561,2]
[372461391,1752652241140,-151.0,0.00023561,2]
[372461392,1752652241149,-151.0,0.00023561,2]
[372461393,1752652241159,-500.0,0.00023561,2]
[372461394,1752652241168,-200.0,0.00023561,2]
[372461395,1752652241177,-200.0,0.00023561,2]
[372461396,1752652241187,-200.0,0.00023561,2]
[372461397,1752652241196,-200.0,0.00023561,2]
[372461398,1752652241206,-200.0,0.00023561,2]
[372461399,1752652241215,-200.0,0.00023561,2]
[372461400,1752652241225,-200.0,0.00023561,2]
[372461401,1752652241235,-282.7493984,0.00023561,2]
[372461402,1752652241244,-562.15,0.00023561,2]
[372461403,1752652241254,-2227.39,0.00023561,2]
[372461404,1752652241263,-675.97,0.00023561,2]
[372461405,1752652241272,-504.19650395,0.00023561,2]
[372461406,1752652241282,-1175.62,0.00023561,2]
[372461407,1752652241292,-460.0,0.00023561,2]
[372461408,1752652241301,-617.64,0.00023561,2]
[372461409,1752652241310,-3082.36,0.00023561,2]
[372461410,1752652241320,-922.83,0.00023561,2]
[372461411,1752652241330,-1058.35,0.00023561,2]
[372461412,1752652241340,-912.42,0.00023561,2]
[372461413,1752652241349,-803.09,0.00023561,2]
[372461414,1752652241358,-1711.13,0.00023561,2]
[372461415,1752652241368,-1855.88,0.00023561,2]
[372461416,1752652241378,-732.25,0.00023561,2]
[372461417,1752652241387,-1021.27,0.00023561,2]
[372461418,1752652241396,-460.0,0.00023561,2]
[372461419,1752652241406,-971.0,0.00023562,2]
[372461420,1752652241419,-433.92859355,0.00023562,2]
[372461421,1752652241428,-640.0,0.00023579,2]
[372461422,1752652241438,-151.0,0.000236,7]
[372461423,1752652241448,-625.48,0.000236,7]
[372461424,1752652241458,-714.90504998,0.00023607,5]
[372461425,1752652241468,-151.0,0.00023612,7]
[372461426,1752652241477,-280.701103,0.00023612,7]
[372461427,1752652241490,-273.698498,0.00023612,7]
[372461428,1752652241500,-151.542808,0.00023612,7]
[372461429,1752652241509,-640.0,0.00023612,2]
[372461430,1752652241599,-584.0,0.00023636,2]
[372461431,1752652241609,-640.0,0.0002364,2]
[372461432,1752652241621,-205.0,0.0002366,2]
[372461433,1752652241631,-151.0,0.000237,7]
[372461434,1752652241641,-324.0,0.00023701,3]
[372461435,1752652241650,-183.67082305,0.00023701,3]
[372461436,1752652241660,-159.13573284,0.00023705,4]
[372461437,1752652241670,-760.0,0.00023733,2]
[372461438,1752652241680,-640.0,0.00023739,2]
[372461439,1752652241689,-151.0,0.000238,7]
[372461440,1752652241699,-151.398223,0.000238,7]
[372461441,1752652241708,-151.0,0.000238,7]
[372461442,1752652241718,-175.207224,0.000238,7]
[372461443,1752652241728,-1973.524237,0.000238,2]
[372461444,1752652241737,-584.0,0.00023824,2]
[372461445,1752652241747,-1505.1104469,0.00023826,2]
[372461446,1752652241757,-500.0,0.00023835,2]
[372461447,1752652241767,-199.04936164,0.00023835,2]
[372461448,1752652241776,-151.0,0.00023835,2]
[372461449,1752652241786,-500.0,0.00023835,2]
[372461450,1752652241795,-151.0,0.00023835,7]
[372461451,1752652241805,-151.0,0.00023835,7]
[372461452,1752652241814,-151.0,0.00023835,7]
[372461453,1752652241824,-562.15,0.00023835,2]
[372461454,1752652241833,-2227.39,0.00023835,2]
[372461455,1752652241843,-675.97,0.00023835,2]
[372461456,1752652241853,-1175.62,0.00023835,2]
[372461457,1752652241864,-460.0,0.00023835,2]
[372461458,1752652241873,-617.64,0.00023835,2]
[372461459,1752652241883,-3082.36,0.00023835,2]
[372461460,1752652241892,-922.83,0.00023835,2]
[372461461,1752652241902,-1058.35,0.00023835,2]
[372461462,1752652241912,-912.42,0.00023835,2]
[372461463,1752652241922,-803.09,0.00023835,2]
[372461464,1752652241932,-1711.13,0.00023835,2]
[372461465,1752652241941,-1855.88,0.00023835,2]
[372461466,1752652241951,-732.25,0.00023835,2]
[372461467,1752652241961,-1021.27,0.00023835,2]
[372461468,1752652241971,-460.0,0.00023835,2]
[372461469,1752652241981,-971.0,0.00023836,2]
[372461470,1752652241991,-151.0,0.00023837,6]
[372461471,1752652242001,-362.96,0.00023838,2]
[372461472,1752652242021,-500.0,0.00023878,2]
[372461473,1752652242033,-584.0,0.0002388,2]
[372461474,1752652242043,-158.02861431,0.00023897,4]
[372461475,1752652242055,-151.0,0.000239,6]
[372461476,1752652242066,-1205.43,0.000239,7]
[372461477,1752652242076,-592.10125467,0.000239,2]
[372461478,1752652242088,-159.13573284,0.00023929,4]
[372461479,1752652242099,-205.0,0.0002397,2]
[372461480,1752652242109,-150.64634875,0.00023973,2]
[372461481,1752652242121,-12500.0,0.00023987,7]
[372461482,1752652242131,-151.0,0.00023987,7]
[372461483,1752652242140,-151.482027,0.00023987,7]
[372461484,1752652242150,-267.007949,0.00023987,7]
[372461485,1752652242160,-267.007949,0.00023987,7]
[372461486,1752652242170,-151.0,0.00023987,7]
[372461487,1752652242180,-230.8109288,0.00024,7]
[372461488,1752652242190,-332.62332807,0.00024,14]
[372461489,1752652242200,-5486.86997907,0.00024,7]
[372461490,1752652242210,-1692.37432593,0.00024,2]
[372461491,1752652242220,-10142.16600894,0.00024,2]
[372461492,1752652242230,-161.7848685,0.00024,2]
[372461493,1752652242240,-453.52457889,0.00024,2]
[372461494,1752652242250,-178.85127462,0.00024,7]
[372461495,1752652242260,-843.0,0.00024,14]
[372461496,1752652242270,-1000.0,0.00024,2]
[372461497,1752652242279,-1000.0,0.00024,2]
[372461498,1752652242289,-1000.0,0.00024,2]
[372461499,1752652242299,-1000.0,0.00024,2]
[372461500,1752652242309,-1000.0,0.00024,2]
[372461501,1752652242318,-1000.0,0.00024,2]
[372461502,1752652242328,-1000.0,0.00024,2]
[372461503,1752652242339,-1000.0,0.00024,2]
[372461504,1752652242348,-1000.0,0.00024,2]
[372461505,1752652242358,-1000.0,0.00024,2]
[372461506,1752652242369,-1000.0,0.00024,2]
[372461507,1752652242379,-1000.0,0.00024,2]
[372461508,1752652242388,-1000.0,0.00024,2]
[372461509,1752652242398,-1000.0,0.00024,2]
[372461510,1752652242409,-1000.0,0.00024,2]
[372461511,1752652242421,-1000.0,0.00024,2]
[372461512,1752652242431,-1000.0,0.00024,2]
[372461513,1752652242440,-1000.0,0.00024,2]
[372461514,1752652242452,-1000.0,0.00024,2]
[372461515,1752652242462,-1000.0,0.00024,2]
[372461516,1752652242472,-1000.0,0.00024,2]
[372461517,1752652242482,-1000.0,0.00024,2]
[372461518,1752652242492,-1000.0,0.00024,2]
[372461519,1752652242502,-1000.0,0.00024,2]
[372461520,1752652242512,-1000.0,0.00024,2]
[372461521,1752652242521,-1000.0,0.00024,2]
[372461522,1752652242531,-585.41,0.00024,2]
[372461523,1752652242542,-197.809217,0.00024,7]
[372461524,1752652242552,-1079.369367,0.00024,7]
[372461525,1752652242561,-1079.369367,0.00024,7]
[372461526,1752652242571,-197.809217,0.00024,7]
[372461527,1752652242581,-215.5496034,0.00024,7]
[372461528,1752652242591,-215.5496034,0.00024,10]
[372461529,1752652242601,-584.0,0.00024027,2]
[372461530,1752652242610,-151.0,0.00024068,7]
[372461531,1752652242622,-151.0,0.00024068,7]
[372461532,1752652242631,-151.0,0.00024068,7]
[372461533,1752652242646,-1500.0,0.00024068,2]
[372461534,1752652242656,-1001.62020953,0.00024068,2]
[372461535,1752652242666,-1500.0,0.00024068,2]
[372461536,1752652242676,-1500.0,0.00024068,2]
[372461537,1752652242687,-903.96986192,0.00024068,2]
[372461538,1752652242697,-151.0,0.00024088,7]
[372461539,1752652242707,-151.0,0.00024088,7]
[372461540,1752652242718,-151.0,0.00024088,7]
[372461541,1752652242728,-5888.0,0.00024095,2]
[372461542,1752652242738,-151.0,0.00024095,7]
[372461543,1752652242749,-151.0,0.000241,7]
[372461544,1752652242758,-457.68574617,0.00024109,2]
[372461545,1752652242769,-246.45058151,0.00024109,2]
[372461546,1752652242779,-500.0,0.00024109,2]
[372461547,1752652242789,-405.213659,0.00024109,7]
[372461548,1752652242799,-405.213659,0.00024109,7]
[372461549,1752652242810,-562.15,0.00024109,2]
[372461550,1752652242820,-2227.39,0.00024109,2]
[372461551,1752652242830,-675.97,0.00024109,2]
[372461552,1752652242840,-1175.62,0.00024109,2]
[372461553,1752652242851,-460.0,0.00024109,2]
[372461554,1752652242861,-617.64,0.00024109,2]
[372461555,1752652242872,-3082.36,0.00024109,2]
[372461556,1752652242882,-922.83,0.00024109,2]
[372461557,1752652242893,-1058.35,0.00024109,2]
[372461558,1752652242903,-912.42,0.00024109,2]
[372461559,1752652242913,-803.09,0.00024109,2]
[372461560,1752652242923,-1711.13,0.00024109,2]
[372461561,1752652242933,-1855.88,0.00024109,2]
[372461562,1752652242943,-732.25,0.00024109,2]
[372461566,1752652242953,-1021.27,0.00024109,2]
[372461569,1752652242963,-532.34,0.00024109,2]
[372461571,1752652242973,-971.0,0.0002411,2]
[372461573,1752652242983,-200.0,0.0002411,9]
[372461574,1752652242994,-640.0,0.00024111,2]
[372461575,1752652243004,-151.0,0.00024115,6]
[372461577,1752652243013,-584.0,0.0002412,2]
[372461578,1752652243023,-162.95973128,0.00024137,2]
[372461579,1752652243033,-640.0,0.00024151,2]
[372461580,1752652243043,-159.13573284,0.00024153,4]
[372461581,1752652243053,-512.851558,0.00024164,8]
[372461582,1752652243063,-640.0,0.00024168,2]
[372461583,1752652243073,-584.0,0.00024179,2]
[372461584,1752652243084,-151.0,0.000242,6]
[372461585,1752652243093,-151.0,0.000242,5]
[372461587,1752652243103,-158.02861431,0.00024249,4]
[372461589,1752652243115,-205.0,0.0002428,2]
[372461591,1752652243124,-860.0,0.00024281,2]
[372461592,1752652243135,-185.358123,0.00024288,7]
[372461593,1752652243145,-584.0,0.00024289,2]
[372461594,1752652243155,-4772.80065877,0.000243,2]
[372461595,1752652243165,-21287.38,0.000243,2]
[372461597,1752652243174,-1000.0,0.000243,2]
[372461599,1752652243184,-584.0,0.00024324,2]
[372461600,1752652243194,-159.13573284,0.00024376,4]
[372461601,1752652243205,-500.0,0.00024383,2]
[372461602,1752652243215,-151.0,0.00024383,7]
[372461603,1752652243225,-562.15,0.00024383,2]
[372461604,1752652243235,-2227.39,0.00024383,2]
[372461606,1752652243245,-675.97,0.00024383,2]
[372461607,1752652243255,-1175.62,0.00024383,2]
[372461608,1752652243265,-368.03799185,0.00024383,2]
[372461609,1752652243277,-617.64,0.00024383,2]
[372461610,1752652243287,-3082.36,0.00024383,2]
[372461611,1752652243297,-922.83,0.00024383,2]
[372461612,1752652243306,-1058.35,0.00024383,2]
[372461613,1752652243317,-912.42,0.00024383,2]
[372461614,1752652243327,-803.09,0.00024383,2]
[372461615,1752652243337,-1711.13,0.00024383,2]
[372461616,1752652243347,-1855.88,0.00024383,2]
[372461617,1752652243359,-732.25,0.00024383,2]
[372461618,1752652243370,-1021.27,0.00024383,2]
[372461619,1752652243380,-971.0,0.00024384,2]
[372461620,1752652243390,-647.0,0.00024388,2]
[372461621,1752652243401,-407.0,0.00024388,2]
[372461622,1752652243412,-968.0,0.00024388,2]
[372461623,1752652243428,-151.0,0.00024394,7]
[372461624,1752652243438,-500.0,0.000245,14]
[372461625,1752652243448,-151.0,0.000245,7]
[372461627,1752652243459,-19042.88,0.000245,7]
[372461629,1752652243468,-205.0,0.0002459,2]
[372461630,1752652243478,-151.0,0.000246,7]
[372461631,1752652243488,-151.0,0.000246,7]
[372461632,1752652243501,-158.02,0.000246,4]
[372461633,1752652243512,-159.13,0.000246,4]
[372461634,1752652243522,-2000.0,0.00024616,2]
[372461635,1752652243531,-2000.0,0.00024616,2]
[372461636,1752652243541,-1506.36238514,0.00024616,2]
[372461637,1752652243551,-151.0,0.0002465,7]
[372461638,1752652243561,-405.213659,0.0002465,7]
[372461639,1752652243676,-405.213659,0.0002465,7]
[372461640,1752652243687,-94847.151229,0.0002465,2]
[372461641,1752652243697,-151.0,0.0002465,7]
[372461642,1752652243707,-151.0,0.0002465,7]
[372461643,1752652243717,-151.039628,0.0002465,2]
[372461644,1752652243727,-500.0,0.00024657,2]
[372461645,1752652243737,-562.15,0.00024657,2]
[372461646,1752652243746,-2227.39,0.00024657,2]
[372461647,1752652243756,-675.97,0.00024657,2]
[372461648,1752652243766,-1175.62,0.00024657,2]
[372461649,1752652243776,-617.64,0.00024657,2]
[372461650,1752652243787,-3082.36,0.00024657,2]
[372461651,1752652243797,-922.83,0.00024657,2]
[372461652,1752652243807,-1058.35,0.00024657,2]
[372461653,1752652243818,-912.42,0.00024657,2]
[372461654,1752652243828,-803.09,0.00024657,2]
[372461655,1752652243838,-1711.13,0.00024657,2]
[372461656,1752652243847,-1855.88,0.00024657,2]
[372461657,1752652243857,-732.25,0.00024657,2]
[372461658,1752652243867,-1021.27,0.00024657,2]
[372461659,1752652243877,-971.0,0.00024658,2]
[372461660,1752652243886,-642.19965284,0.00024658,2]
[372461661,1752652243896,-197.809217,0.00024658,7]
[372461662,1752652243906,-1079.369367,0.00024658,7]
[372461663,1752652243916,-1079.369367,0.00024658,7]
[372461664,1752652243926,-197.809217,0.00024658,7]
[372461665,1752652243936,-500.0,0.00024658,2]
[372461666,1752652243946,-151.0,0.00024658,7]
[372461667,1752652243955,-151.0,0.00024672,7]
[372461668,1752652243966,-151.0,0.00024672,7]
[372461669,1752652243976,-151.0,0.00024672,7]
[372461670,1752652243986,-151.0,0.00024672,7]
[372461671,1752652243998,-151.0,0.00024672,7]
[372461672,1752652244009,-151.0,0.00024672,7]
[372461673,1752652244018,-80902.77026738,0.00024672,2]
[372461674,1752652244028,-429.1687796,0.00024685,2]
[372461675,1752652244038,-119225.38978295,0.000247,7]
[372461676,1752652244048,-151.0,0.000247,7]
[372461677,1752652244057,-151.0,0.000247,7]
[372461678,1752652244067,-151.0,0.000247,7]
[372461679,1752652244079,-267.007949,0.000247,7]
[372461680,1752652244089,-267.007949,0.000247,7]
[372461681,1752652244100,-151.0,0.000247,7]
[372461682,1752652244110,-151.0,0.000247,7]
[372461683,1752652244120,-175.207224,0.000247,7]
[372461684,1752652244130,-153.442931,0.000247,7]
[372461685,1752652244139,-153.442931,0.000247,7]
[372461686,1752652244148,-500.0,0.000247,7]
[372461687,1752652244158,-500.0,0.000247,7]
[372461688,1752652244167,-151.0,0.000247,7]
[372461689,1752652244185,-500.0,0.000247,7]
[372461690,1752652244199,-500.0,0.000247,7]
[372461691,1752652244210,-500.0,0.000247,7]
[372461692,1752652244220,-164.26806508,0.000247,7]
[372461693,1752652244231,-505.51862251,0.000247,7]
[372461694,1752652244242,-151.0,0.000247,7]
[372461695,1752652244252,-282.010939,0.000247,7]
[372461696,1752652244263,-151.0,0.000247,7]
[372461697,1752652244273,-151.0,0.000247,7]
[372461698,1752652244283,-151.0,0.000247,7]
[372461699,1752652244293,-151.0,0.000247,7]
[372461700,1752652244304,-151.0,0.000247,7]
[372461701,1752652244313,-273.105147,0.000247,7]
[372461702,1752652244324,-273.105147,0.000247,7]
[372461703,1752652244333,-151.0,0.000247,7]
[372461704,1752652244343,-151.0,0.000247,7]
[372461705,1752652244353,-220.938817,0.000247,7]
[372461706,1752652244363,-220.938817,0.000247,7]
[372461707,1752652244374,-191.929217,0.000247,7]
[372461708,1752652244384,-191.929217,0.000247,7]
[372461709,1752652244394,-223.0315306,0.00024702,2]
[372461710,1752652244404,-1505.1104469,0.0002477,2]
[372461711,1752652244418,-151.526342,0.00024779,7]
[372461712,1752652244430,-674.05284906,0.0002479,2]
[372461713,1752652244440,-151.0,0.000248,7]
[372461714,1752652244450,-151.0,0.000248,7]
[372461715,1752652244463,-151.0,0.000248,7]
[372461716,1752652244474,-904.42215,0.000248,7]
[372461717,1752652244489,-904.42215,0.000248,7]
[372461718,1752652244500,-1000.0,0.000248,2]
[372461719,1752652244509,-584.0,0.0002481,2]
[372461720,1752652244519,-153.0,0.00024822,2]
[372461721,1752652244529,-472.97409806,0.00024829,2]
[372461722,1752652244538,-151.039628,0.00024852,2]
[372461723,1752652244548,-58938.32635417,0.0002487,4]
[372461724,1752652244651,-304.35876269,0.0002487,4]
[372461725,1752652244777,-460.0,0.00019178,2]
[372461726,1752652244787,-460.0,0.00019178,2]
[372461727,1752652244796,-460.0,0.00019452,2]
[372461728,1752652244806,-22875.83321183,0.00021964,2]
[372461729,1752652244818,-87.15277315,0.00021964,2]
[372461730,1752652244828,-5084.65743152,0.00022512,2]
[372461731,1752652244839,-19915.34256848,0.00022512,2]
[372461732,1752652244849,-84.37409151,0.0002487,4]
[372461733,1752652244861,-7251.85444772,0.0002487,4]
[372461734,1752652244874,-9809.70616233,0.0002487,4]
[372461735,1752652244883,-151.0,0.0002487,7]
[372461736,1752652244893,-151.0,0.0002487,7]
[372461737,1752652244902,-191.929217,0.0002487,7]
[372461738,1752652244911,-191.929217,0.0002487,7]
[372461739,1752652244921,-197.809217,0.0002487,7]
[372461740,1752652244931,-1079.369367,0.0002487,7]
[372461741,1752652244940,-1079.369367,0.0002487,7]
[372461742,1752652244950,-197.809217,0.0002487,7]
[372461743,1752652244960,-151.0,0.0002487,7]
[372461744,1752652244970,-674.05284902,0.00024875,2]
[372461745,1752652244979,-75317.15,0.0002489,7]
[372461746,1752652244988,-151.0,0.0002489,7]
[372461747,1752652244998,-151.600963,0.0002489,7]
[372461748,1752652245008,-151.0,0.0002489,7]
[372461749,1752652245017,-151.0,0.0002489,7]
[372461750,1752652245027,-151.0,0.0002489,7]
[372461751,1752652245036,-151.557843,0.0002489,7]
[372461752,1752652245045,-151.0,0.0002489,7]
[372461753,1752652245055,-151.0,0.0002489,7]
[372461754,1752652245065,-151.997121,0.0002489,7]
[372461755,1752652245075,-151.0,0.0002489,7]
[372461756,1752652245084,-153.442931,0.0002489,7]
[372461757,1752652245093,-153.442931,0.0002489,7]
[372461758,1752652245103,-152.097822,0.0002489,7]
[372461759,1752652245112,-151.0,0.0002489,7]
[372461760,1752652245122,-151.0,0.0002489,7]
[372461761,1752652245132,-151.0,0.0002489,7]
[372461762,1752652245142,-151.0,0.0002489,7]
[372461763,1752652245151,-151.0,0.0002489,7]
[372461764,1752652245160,-151.0,0.0002489,7]
[372461765,1752652245170,-273.105147,0.0002489,7]
[372461766,1752652245180,-273.105147,0.0002489,7]
[372461767,1752652245190,-151.0,0.0002489,7]
[372461768,1752652245200,-151.0,0.0002489,7]
[372461769,1752652245210,-220.938817,0.0002489,7]
[372461770,1752652245220,-220.938817,0.0002489,7]
[372461771,1752652245229,-151.0,0.0002489,7]
[372461772,1752652245242,-151.039628,0.0002489,7]
[372461773,1752652245252,-151.0,0.0002489,7]
[372461774,1752652245262,-151.0,0.0002489,7]
[372461775,1752652245273,-151.0,0.0002489,7]
[372461776,1752652245282,-500.0,0.00024898,9]
[372461777,1752652245293,-500.0,0.00024898,9]
[372461778,1752652245302,-500.0,0.00024899,10]
[372461779,1752652245313,-1000.0,0.00024899,7]
[372461780,1752652245323,-1000.0,0.00024899,10]
[372461781,1752652245333,-160.0,0.000249,7]
[372461782,1752652245342,-771.05,0.000249,2]
[372461783,1752652245352,-151.0,0.000249,7]
[372461784,1752652245362,-151.0,0.000249,7]
[372461785,1752652245372,-405.213659,0.000249,7]
[372461786,1752652245381,-405.213659,0.000249,7]
[372461787,1752652245391,-206.691954,0.000249,7]
[372461788,1752652245499,-205.0,0.000249,2]
[372461789,1752652245509,-151.0,0.000249,7]
[372461790,1752652245519,-151.0,0.000249,7]
[372461791,1752652245529,-151.0,0.000249,7]
[372461792,1752652245538,-151.0,0.000249,7]
[372461793,1752652245548,-151.0,0.000249,7]
[372461794,1752652245558,-267.007949,0.000249,7]
[372461795,1752652245568,-267.007949,0.000249,7]
[372461796,1752652245578,-151.0,0.000249,7]
[372461797,1752652245587,-151.0,0.000249,7]
[372461798,1752652245597,-151.0,0.000249,7]
[372461799,1752652245607,-151.0,0.000249,7]
[372461800,1752652245617,-151.0,0.000249,7]
[372461801,1752652245627,-151.0,0.000249,7]
[372461802,1752652245638,-151.99573,0.000249,7]
[372461803,1752652245648,-175.207224,0.000249,7]
[372461804,1752652245657,-175.207224,0.000249,7]
[372461805,1752652245667,-625.48,0.000249,7]
[372461806,1752652245677,-151.0,0.000249,7]
[372461807,1752652245686,-153.442931,0.000249,7]
[372461808,1752652245695,-153.442931,0.000249,7]
[372461809,1752652245705,-151.0,0.000249,7]
[372461810,1752652245715,-151.0,0.000249,7]
[372461811,1752652245724,-151.0,0.000249,7]
[372461812,1752652245734,-151.0,0.000249,7]
[372461813,1752652245744,-151.0,0.000249,7]
[372461814,1752652245753,-284.42664383,0.000249,7]
[372461815,1752652245763,-151.0,0.000249,7]
[372461816,1752652245773,-273.105147,0.000249,7]
[372461817,1752652245783,-273.105147,0.000249,7]
[372461818,1752652245793,-904.42215,0.000249,7]
[372461819,1752652245803,-904.42215,0.000249,7]
[372461820,1752652245812,-151.0,0.000249,7]
[372461822,1752652245822,-151.0,0.000249,7]
[372461823,1752652245832,-220.938817,0.000249,7]
[372461824,1752652245842,-220.938817,0.000249,7]
[372461825,1752652245851,-191.929217,0.000249,7]
[372461826,1752652245861,-191.929217,0.000249,7]
[372461827,1752652245871,-151.0,0.000249,7]
[372461828,1752652245881,-197.809217,0.000249,7]
[372461829,1752652245890,-1079.369367,0.000249,7]
[372461830,1752652245900,-1079.369367,0.000249,7]
[372461831,1752652245910,-197.809217,0.000249,7]
[372461832,1752652245920,-151.0,0.000249,7]
[372461833,1752652245929,-151.0,0.000249,7]
[372461834,1752652245940,-523275.76976335,0.000249,2]
[372461837,1752652246431,-460.0,0.00019178,2]
[372461838,1752652246441,-460.0,0.00019178,2]
[372461839,1752652246450,-56.23338754,0.00019726,2]
[372461840,1752652246499,-403.76661246,0.00019726,2]
[372461841,1752652246511,-460.0,0.0002,2]
[372461842,1752652246520,-460.0,0.00020273,2]
[372461843,1752652246530,-460.0,0.00020547,2]
[372461844,1752652246540,-460.0,0.00020821,2]
[372461845,1752652246551,-460.0,0.00021095,2]
[372461846,1752652246561,-460.0,0.00021369,2]
[372461847,1752652246571,-1185.45,0.00023551,10]
[372461848,1752652246580,-247.364,0.00024411,2]
[372461849,1752652246590,-321.09982642,0.00024685,2]
[372461850,1752652246600,-12176.50252537,0.000249,2]
[372461851,1752652247224,-3504.26855508,0.000249,2]
[372461853,1752652325316,-300.0,0.00019177,2]
[372461854,1752652325339,-460.0,0.00019178,2]
[372461855,1752652325360,-460.0,0.00019178,2]
[372461856,1752652325384,-460.0,0.00019178,2]
[372461857,1752652325407,-460.0,0.00019178,2]
[372461858,1752652325432,-460.0,0.00019178,2]
[372461859,1752652325458,-460.0,0.00019178,2]
[372461860,1752652325484,-444.0,0.00019178,2]
[372461862,1752652446662,207.66301081,0.000222,69]
[372461864,1752652581428,300.0,0.0001902,14]
[372461867,1752653137110,-229.53927358,0.00018603,2]
[372461868,1752653137131,-215.21496623,0.00018873,2]
[372461869,1752653137153,-1732.37565387,0.00018973,2]
[372461870,1752653146083,-2078.54819663,0.00018973,2]
[372461872,1752653226509,333.516268,0.00013699,2]
[372461876,1752653246089,-1237.731181,0.00018973,2]
[372461877,1752653246157,-104.2649452,0.00018973,2]
[372461878,1752653246180,-1200.0,0.00019176,2]
[372461879,1752653246205,-1200.0,0.00019176,2]
[372461880,1752653246228,-300.0,0.00019176,2]